[Event "26th OIBM 2023"]
[Site "Gmund am Tegernsee"]
[Date "2023.10.31"]
[Round "4.1"]
[White "Schmider, Niklas"]
[Black "Bauer, Christian"]
[Result "1-0"]
[ECO "C11"]
[WhiteElo "2395"]
[BlackElo "2552"]
[Annotator "TA"]
[PlyCount "89"]
[EventDate "2023.10.04"]
[EventType "swiss"]
[EventCountry "GER"]
[SourceTitle "playchess.com"]
[Source "ChessBase"]
[SourceQuality "1"]
[TimeControl "40/5400+30:1800+30"]

{[%evp 9,89,24,42,32,32,27,45,21,35,18,23,13,41,35,45,13,0,0,19,-22,-22,-25,-15,-41,-43,-41,-51,-66,-60,-90,-85,-76,-114,-164,-151,-151,-170,-152,-156,-166,-164,-264,-263,-264,-252,-650,0,0,0,0,162,154,132,0,0,0,74,68,66,74,171,0,0,0,178,56,137,13,6,26,460,387,1045,1029,1005,1005,913,908,12846,5916,5297,894]} 1. e4 {[%emt 0:01:13]} e6 {[%emt 0:00:04]} 2. d4 {[%emt 0:00:06]} d5 {[%emt 0:00:05]} 3. Nc3 {[%emt 0:00:37]} Nf6 {[%emt 0:00:10]} 4. e5 {[%emt 0:00:33]} Ng8 {[%emt 0:00:08][%cal Bf6g8,Bg8e7,Be7g6][%mdl 32]} 5. Nf3 {[%emt 0:17:08]} c5 {[%emt 0:05:19]} 6. dxc5 {[%emt 0:00:40] C11: French: Classical System: 4 e5 and 4 Bg5 dxe4.} Bxc5 {[%emt 0:00:32]} 7. Bd3 {[%emt 0:00:37]} Nc6 {[%emt 0:00:50]} 8. O-O {[%emt 0:03:11] White is slightly better.} (8. Na4 $5 {[%cal Ra4c5]}) 8... a6 {[%emt 0:06:01] Wards off Nb5} 9. Bf4 {[%emt 0:15:07]} Nge7 {[%emt 0:04:15]} 10. Re1 {[%emt 0:04:32]} Ng6 {[%emt 0:05:50]} 11. Bg3 {[%emt 0:01:55]} O-O {[%emt 0:08:35] [#]} 12. h4 $146 {[%emt 0:04:31]} ({Predecessor:} 12. Qd2 Bd7 13. a3 Kh8 14. b4 Bb6 15. h4 f5 16. exf6 Qxf6 17. Na4 Ba7 18. Nc5 Bxc5 19. bxc5 {1-0 Hermlin,A (2300)-Nevanlinna,R (2285) Jyvaskyla We JyS op 1997 (3)}) 12... f5 {[%emt 0:05:54]} 13. exf6 {[%emt 0:07:05]} gxf6 {[%emt 0:07:01]} 14. Bxg6 {[%emt 0:06:30]} (14. Na4 {simplifies} Ba7 15. c4 e5 16. Bxg6 hxg6 17. cxd5 Nd4 18. Nxd4 Bxd4 19. Qb3) 14... hxg6 {[%emt 0:01:11]} 15. Qd3 {[%emt 0:00:42]} Ne7 {[%emt 0:16:15]} 16. h5 {[%emt 0:00:11]} g5 {[%emt 0:09:33]} 17. Rad1 {[%emt 0:00:08][%cal Oc3e4]} Qe8 {[%emt 0:01:26]} 18. h6 {[%emt 0:15:24][%cal Of3g5] Nxg5! is the strong threat.} Qh5 {[%emt 0:09:33]} 19. Na4 {[%emt 0:01:24]} Ba7 {[%emt 0:00:07] White must now prevent ...Nf5.} 20. Bd6 {[%emt 0:00:25]} Rf7 {[%emt 0:00:18]} 21. Nh2 {[%emt 0:06:58]} (21. Bxe7 $17 Rxe7 22. Nc3 Qxh6 23. Nxd5) 21... Bd7 $19 {[%emt 0:03:39]} (21... Qxh6 22. Ng4 Qh8 23. Bxe7 Rxe7 24. Qg6+ Kf8 25. Rd3 $17 (25. Qxf6+ $2 Qxf6 26. Nxf6 Rf7 $19)) 22. Nc5 {[%emt 0:01:53]} Bxc5 {[%emt 0:02:27]} 23. Bxc5 {[%emt 0:00:02]} Ng6 {[%emt 0:01:28][%cal Be7g6,Bg6f4,Bf4e2][%mdl 32]} 24. Bd6 {[%emt 0:05:30]} Rc8 {[%emt 0:04:33]} 25. b3 {[%emt 0:01:51]} (25. Ng4 e5 26. Nxe5 fxe5 27. Bxe5 Nf4 28. Bxf4 gxf4) (25. Rd2 {is a better defense.}) 25... e5 {[%emt 0:01:07]} (25... Qxh6 $2 26. Ng4 Qh5 27. Qf3 $19) 26. Qxd5 {[%emt 0:01:10]} Nf4 {[%emt 0:00:41]} 27. Qxb7 {[%emt 0:00:33]} (27. Qf3 Qxh6 28. Rd2) 27... Qxh6 $2 {[%emt 0:02:03]} (27... Rh7 $19 28. Bxe5 (28. Qxa6 Rxh6 29. f3 Qxh2+ 30. Kf2 Rxc2+ 31. Ke3 Nxg2+ 32. Kd3 Nxe1+ 33. Rxe1 Bf5+ 34. Ke3 Qf4#) 28... Qxh6 29. Bxf4 (29. Rxd7 $2 Qxh2+ 30. Kf1 Qh1#) 29... gxf4 30. Rxd7 Qxh2+ 31. Kf1 Qh1+ 32. Ke2 Re8+ {[%mdl 64] Skewer} 33. Kd3 Rxd7+ 34. Qxd7 Qxe1 35. Qd5+ Kg7 36. Qd7+ Kg8 37. Qd5+ Kg7 38. Qd7+ Kh6) 28. Bf8 $11 {[%emt 0:01:52]} Qxf8 {[%emt 0:03:14]} (28... Kxf8 $2 29. Rxd7 Rxd7 30. Qxc8+ Ke7 31. Ng4 $18 (31. Qxa6 Qh5 $16)) 29. Rxd7 {[%emt 0:00:01]} Rxd7 {[%emt 0:00:26]} (29... Rxc2 $11 30. Ng4 (30. Rxf7 Qxf7 31. Qxa6 Qd5 $11) 30... Kg7) 30. Qxd7 $18 {[%emt 0:00:03]} Rxc2 {[%emt 0:00:01] [#]} 31. g3 {[%emt 0:01:21]} (31. Ng4 $1 $16 {aiming for Qf5.} Rxa2 32. Rd1) 31... Ne2+ $11 {[%emt 0:00:41]} 32. Kg2 {[%emt 0:00:48]} Nd4 {[%emt 0:00:55]} (32... Rxa2 $2 33. Nf3 (33. Ng4 Qa8+ 34. Kh2 Qf3 $11) 33... Qg7 34. Qe6+ Qf7 35. Qc8+ Qf8 36. Qc6 $18) (32... Qa8+ $11 {keeps the balance.} 33. Kh3 Nf4+ {[%mdl 64] Discovered Attack} 34. gxf4 Rxf2) 33. Ng4 $16 {[%emt 0:00:51] And now Qb7 would win.} Qa8+ {[%emt 0:01:55]} (33... Rxa2 34. Qb7 Qg7 35. Qd5+ Kf8 36. Rh1 $18) 34. Kh3 {[%emt 0:00:16] Dancing on a razor blade.} Qf8 {[%emt 0:00:40]} (34... Rxa2 35. Nxf6+ Kf8 36. Nh7+ Kg8 37. Nxg5 Rxf2 38. Qh7+ (38. Rxe5 $2 Qh1+ 39. Kg4 Qd1+ $19) 38... Kf8 39. Qh8+ (39. Rxe5 Qh1+ 40. Kg4 Qd1+ 41. Kh3 Qh1+ 42. Kg4 Qd1+ 43. Kh3 Qh1+ $11) 39... Ke7 40. Qxe5+ Kd7 41. Qxd4+) (34... Qc6 $16 35. Qe7 (35. Nh6+ Kh8 $11) 35... Qe6 36. Qxe6+ {[%mdl 64] Remove Defender} (36. Qxf6 Qxf6 37. Nxf6+ Kf7 $16) 36... Nxe6) 35. Kg2 {[%emt 0:01:11]} Qa8+ {[%emt 0:00:00]} (35... Rxa2 $2 36. Qb7 Ne6 37. Rh1 $18) 36. Kh3 {[%emt 0:00:09]} Qf8 {[%emt 0:00:01] [#]} (36... Rxa2 {gets mated.} 37. Nxf6+ Kf8 38. Nh7+ Kg8 39. Nxg5 Rxf2 40. Qh7+ (40. Rxe5 $2 {too greedy.} Qh1+ 41. Kg4 Qd1+ $19) 40... Kf8 41. Qh8+ (41. Rxe5 Qh1+ 42. Kg4 Qd1+ 43. Kh3 Qh1+ 44. Kg4 Qd1+ 45. Kh3 Qh1+ $11) 41... Ke7 42. Qxe5+ Kd7 43. Qxd4+) 37. Rh1 {[%emt 0:00:57]} (37. b4 $1 $18) 37... Rc5 {[%emt 0:01:06]} (37... Rxa2 $2 38. Rc1 Rc2 39. Rxc2 Nxc2 40. Qf5 $18) (37... f5 $14) 38. Kg2 $40 {[%emt 0:00:41][%mdl 128] White is up to no good. White is more active.} ({White should try} 38. b4 $16 Rc2 39. Qd5+ Kg7 40. Kg2) 38... Qa8+ $11 {[%emt 0:00:01]} 39. Kh2 {[%emt 0:00:09]} Qf8 {[%emt 0:00:28][%mdl 8192]} (39... Rc6 $11) 40. Qa7 {[%emt 0:00:56] Strongly threatening Kg2.} (40. Kg2 Qa8+ 41. Kh2 Rc6 $16) 40... f5 $2 {[%emt 0:01:25] [#]} (40... Ne6 41. Kg2 Rc7 42. Qxa6 Qc8 43. Nxf6+ Kg7 44. Qxc8 Rxc8) 41. Kg2 $1 $18 {[%emt 0:05:43][%csl Gh1][%cal Ra7h7] White is clearly winning.} Rc7 {[%emt 0:00:03] Prevents Qh7+.} 42. Qxc7 {[%emt 0:09:07][%csl Gh1][%cal Rc7h7]} Qa8+ {[%emt 0:00:02]} 43. Kg1 {[%emt 0:00:13]} Ne2+ {[%emt 0:02:10]} 44. Kh2 {[%emt 0:00:32] Threatening mate with Nh6+.} fxg4 {[%emt 0:00:10]} 45. Qxe5 {[%emt 0:01:52] White used his chance. An entertaining game by Schmider.   Weighted Error Value: White=0.47/Black=0.40} (45. Qc4+ $142 Kg7 46. Qxe2) 1-0

[Event "26th OIBM 2023"]
[Site "Gmund am Tegernsee"]
[Date "2023.10.31"]
[Round "4.2"]
[White "Stocek, Jiri"]
[Black "Schachinger, Mario"]
[Result "1-0"]
[ECO "E54"]
[WhiteElo "2535"]
[BlackElo "2385"]
[Annotator "RC"]
[PlyCount "55"]
[EventDate "2023.10.04"]
[EventType "swiss"]
[EventCountry "GER"]
[SourceTitle "playchess.com"]
[Source "ChessBase"]
[SourceQuality "1"]
[TimeControl "40/5400+30:1800+30"]

1. d4 {[%emt 0:00:44]} Nf6 {[%emt 0:01:00]} 2. c4 {[%emt 0:00:24]} e6 {[%emt 0:00:19]} 3. Nc3 {[%emt 0:01:47]} Bb4 {[%emt 0:00:14]} 4. e3 {[%emt 0:00:26]} O-O {[%emt 0:00:30]} 5. Bd3 {[%emt 0:00:29]} d5 {[%emt 0:00:26]} 6. Nf3 {[%emt 0:01:16]} c5 {[%emt 0:00:29]} 7. O-O {[%emt 0:01:25]} cxd4 {[%emt 0:00:24]} 8. exd4 {[%emt 0:00:13]} dxc4 {[%emt 0:00:09]} 9. Bxc4 {[%emt 0:00:05]} b6 {[%emt 0:00:21]} 10. Re1 {[%emt 0:04:04]} Bb7 {[%emt 0:00:37]} 11. Bb3 {[%emt 0:11:41]} Nc6 {[%emt 0:03:56]} 12. Bg5 {[%emt 0:10:19]} Ne7 {[%emt 0:08:53]} 13. a3 {[%emt 0:19:40]} Bd6 {[%emt 0:17:11]} 14. h4 {[%emt 0:06:07]} Bxf3 {[%emt 0:09:57]} 15. Qxf3 {[%emt 0:02:59]} Nf5 {[%emt 0:00:06]} 16. Rad1 {[%emt 0:02:38]} h6 {[%emt 0:01:01]} 17. d5 {[%emt 0:07:08]} hxg5 {[%emt 0:03:45]} 18. dxe6 {[%emt 0:04:05]} Nxh4 {[%emt 0:27:33]} 19. exf7+ {[%emt 0:00:34]} Kh8 {[%emt 0:00:08]} 20. Qc6 {[%emt 0:09:13]} Nf5 {[%emt 0:02:33]} 21. Nb5 {[%emt 0:00:13]} Rc8 {[%emt 0:04:46]} 22. Qf3 {[%emt 0:00:08]} Rc5 {[%emt 0:08:08]} 23. Nxd6 {[%emt 0:02:56]} Nxd6 {[%emt 0:00:06]} 24. Qg3 {[%emt 0:04:52]} Rc6 {[%emt 0:01:41]} 25. Bd5 {[%emt 0:02:43]} Rc7 {[%emt 0:01:38]} 26. Qh2+ {[%emt 0:00:47]} Nh7 {[%emt 0:00:14]} 27. Be4 {[%emt 0:00:11]} g6 {[%emt 0:02:23]} 28. Bxg6 {[%emt 0:00:24]} 1-0

[Event "26th OIBM 2023"]
[Site "Gmund am Tegernsee"]
[Date "2023.10.31"]
[Round "4.3"]
[White "Morawietz, Dieter"]
[Black "Gallego Alcaraz, Andres Felipe"]
[Result "1-0"]
[ECO "E95"]
[WhiteElo "2378"]
[BlackElo "2495"]
[Annotator "RC"]
[PlyCount "89"]
[EventDate "2023.10.04"]
[EventType "swiss"]
[EventCountry "GER"]
[SourceTitle "playchess.com"]
[Source "ChessBase"]
[SourceQuality "1"]
[TimeControl "40/5400+30:1800+30"]

1. d4 {[%emt 0:00:03]} Nf6 {[%emt 0:00:08]} 2. c4 {[%emt 0:00:08]} g6 {[%emt 0:00:06]} 3. Nc3 {[%emt 0:00:15]} Bg7 {[%emt 0:00:06]} 4. e4 {[%emt 0:00:29]} d6 {[%emt 0:00:06]} 5. Nf3 {[%emt 0:00:30]} O-O {[%emt 0:00:11]} 6. Be2 {[%emt 0:00:10]} Nbd7 {[%emt 0:00:13]} 7. O-O {[%emt 0:00:23]} e5 {[%emt 0:00:21]} 8. Re1 {[%emt 0:00:39]} exd4 {[%emt 0:00:35]} 9. Nxd4 {[%emt 0:00:10]} Re8 {[%emt 0:00:18]} 10. Bf1 {[%emt 0:02:03]} Ne5 {[%emt 0:00:28]} 11. Bg5 {[%emt 0:06:15]} h6 {[%emt 0:04:59]} 12. Bh4 {[%emt 0:00:07]} Nc6 {[%emt 0:06:16]} 13. Nc2 {[%emt 0:07:20]} g5 {[%emt 0:16:29]} 14. Bg3 {[%emt 0:01:06]} Nd7 {[%emt 0:00:45]} 15. Qd2 {[%emt 0:13:27]} Nc5 {[%emt 0:01:58]} 16. f3 {[%emt 0:00:12]} a5 {[%emt 0:04:04]} 17. Rad1 {[%emt 0:02:48]} Be6 {[%emt 0:13:58]} 18. b3 {[%emt 0:08:37]} Be5 {[%emt 0:03:38]} 19. Nb5 {[%emt 0:04:49]} Qe7 {[%emt 0:04:38]} 20. Ne3 {[%emt 0:04:16]} Nb4 {[%emt 0:07:03]} 21. Nd5 {[%emt 0:14:04]} Bxd5 {[%emt 0:07:30]} 22. exd5 {[%emt 0:00:09]} Qd8 {[%emt 0:08:39]} 23. f4 {[%emt 0:02:35]} gxf4 {[%emt 0:03:46]} 24. Bxf4 {[%emt 0:00:56]} Bxf4 {[%emt 0:06:39]} 25. Qxf4 {[%emt 0:11:15]} Qg5 {[%emt 0:01:24]} 26. Qxg5+ {[%emt 0:00:08]} hxg5 {[%emt 0:00:04]} 27. Nxc7 {[%emt 0:01:06]} Rxe1 {[%emt 0:00:06]} 28. Rxe1 {[%emt 0:00:03]} Rc8 {[%emt 0:00:40]} 29. Nb5 {[%emt 0:00:08]} Nxa2 {[%emt 0:03:37]} 30. Ra1 {[%emt 0:02:23]} Nb4 {[%emt 0:00:19]} 31. Rxa5 {[%emt 0:00:56]} b6 {[%emt 0:00:50]} 32. Ra1 {[%emt 0:03:55]} Rd8 {[%emt 0:00:26]} 33. Be2 {[%emt 0:01:56]} Kg7 {[%emt 0:00:57]} 34. Rf1 {[%emt 0:02:28]} Nc2 {[%emt 0:03:15]} 35. Rf3 {[%emt 0:03:39]} f6 {[%emt 0:02:02]} 36. Bd1 {[%emt 0:00:38]} Nb4 {[%emt 0:00:06]} 37. Nd4 {[%emt 0:02:21]} Kg6 {[%emt 0:00:51]} 38. Nc6 {[%emt 0:02:42]} Nxc6 {[%emt 0:00:59]} 39. Bc2+ {[%emt 0:00:10]} Kf7 {[%emt 0:00:38]} 40. dxc6 {[%emt 0:00:05]} Na6 {[%emt 0:00:44]} 41. Bf5 {[%emt 0:32:07]} d5 {[%emt 0:30:17]} 42. Rh3 {[%emt 0:00:00]} Ke7 {[%emt 0:00:00]} 43. Rh7+ {[%emt 0:00:00]} Kd6 {[%emt 0:00:00]} 44. cxd5 {[%emt 0:00:00]} Nc7 {[%emt 0:00:00]} 45. Rd7+ {[%emt 0:00:00]} 1-0

[Event "26th OIBM 2023"]
[Site "Gmund am Tegernsee"]
[Date "2023.10.31"]
[Round "4.4"]
[White "Besou, Hussain"]
[Black "Vogel, Roven"]
[Result "0-1"]
[ECO "B84"]
[WhiteElo "2351"]
[BlackElo "2471"]
[Annotator "RC"]
[PlyCount "78"]
[EventDate "2023.10.04"]
[EventType "swiss"]
[EventCountry "GER"]
[SourceTitle "playchess.com"]
[Source "ChessBase"]
[SourceQuality "1"]
[TimeControl "40/5400+30:1800+30"]

1. e4 {[%emt 0:00:05]} c5 {[%emt 0:00:08]} 2. Nf3 {[%emt 0:00:05]} d6 {[%emt 0:00:08]} 3. d4 {[%emt 0:00:06]} cxd4 {[%emt 0:00:03]} 4. Nxd4 {[%emt 0:00:04]} Nf6 {[%emt 0:00:08]} 5. Nc3 {[%emt 0:00:04]} a6 {[%emt 0:00:07]} 6. Be2 {[%emt 0:01:22]} e6 {[%emt 0:01:44]} 7. O-O {[%emt 0:01:26]} Be7 {[%emt 0:00:59]} 8. f4 {[%emt 0:01:02]} Qc7 {[%emt 0:02:11]} 9. Be3 {[%emt 0:00:53]} Nbd7 {[%emt 0:07:31]} 10. Bf3 {[%emt 0:19:35]} Nb6 {[%emt 0:03:35]} 11. Kh1 {[%emt 0:10:20]} Nc4 {[%emt 0:04:13]} 12. Bc1 {[%emt 0:00:55]} O-O {[%emt 0:06:23]} 13. b3 {[%emt 0:04:26]} Na5 {[%emt 0:04:44]} 14. Bb2 {[%emt 0:01:06]} Re8 {[%emt 0:08:16]} 15. Qe1 {[%emt 0:09:53]} e5 {[%emt 0:02:10]} 16. Nde2 {[%emt 0:06:36]} Bf8 {[%emt 0:03:36]} 17. Rd1 {[%emt 0:05:36]} Nc6 {[%emt 0:02:46]} 18. Qh4 {[%emt 0:02:55]} Ne7 {[%emt 0:01:24]} 19. fxe5 {[%emt 0:09:23]} dxe5 {[%emt 0:01:45]} 20. Rd2 {[%emt 0:04:52]} Ng6 {[%emt 0:00:54]} 21. Qg3 {[%emt 0:00:08]} b5 {[%emt 0:05:42]} 22. a4 {[%emt 0:04:58]} bxa4 {[%emt 0:01:40]} 23. Nxa4 {[%emt 0:00:37]} Bb7 {[%emt 0:00:33]} 24. Nac3 {[%emt 0:02:58]} Bb4 {[%emt 0:01:02]} 25. Rd4 {[%emt 0:00:49]} Qe7 {[%emt 0:02:34]} 26. Rdd1 {[%emt 0:01:44]} Rac8 {[%emt 0:01:07]} 27. Qf2 {[%emt 0:04:00]} Rc5 {[%emt 0:01:34]} 28. Qe3 {[%emt 0:01:45]} Rec8 {[%emt 0:00:48]} 29. Qd3 {[%emt 0:02:57]} a5 {[%emt 0:06:28]} 30. Rc1 {[%emt 0:02:16]} Nf4 {[%emt 0:02:43]} 31. Nxf4 {[%emt 0:02:15]} Rxc3 {[%emt 0:02:42]} 32. Bxc3 {[%emt 0:00:25]} Rxc3 {[%emt 0:00:05]} 33. Qb5 {[%emt 0:00:04]} exf4 {[%emt 0:01:17]} 34. e5 {[%emt 0:00:22]} Ne4 {[%emt 0:05:44]} 35. Rcd1 {[%emt 0:00:55]} h6 {[%emt 0:02:14]} 36. Qd7 {[%emt 0:00:55]} Rc7 {[%emt 0:02:14]} 37. Qxe7 {[%emt 0:00:33]} Rxe7 {[%emt 0:05:01]} 38. Be2 {[%emt 0:00:33]} g5 {[%emt 0:03:12]} 39. Bc4 {[%emt 0:00:31]} Nd2 {[%emt 0:00:25]} 0-1

[Event "26th OIBM 2023"]
[Site "Gmund am Tegernsee"]
[Date "2023.10.31"]
[Round "4.5"]
[White "Goldbeck, Lars"]
[Black "Golubka, Petro"]
[Result "1/2-1/2"]
[ECO "D38"]
[WhiteElo "2272"]
[BlackElo "2434"]
[Annotator "RC"]
[PlyCount "101"]
[EventDate "2023.10.04"]
[EventType "swiss"]
[EventCountry "GER"]
[SourceTitle "playchess.com"]
[Source "ChessBase"]
[SourceQuality "1"]
[TimeControl "40/5400+30:1800+30"]

1. d4 {[%emt 0:00:02]} Nf6 {[%emt 0:05:17]} 2. c4 {[%emt 0:00:05]} e6 {[%emt 0:02:01]} 3. Nc3 {[%emt 0:00:14]} Bb4 {[%emt 0:00:03]} 4. e3 {[%emt 0:00:04]} d5 {[%emt 0:00:17]} 5. Qa4+ {[%emt 0:00:55]} Nc6 {[%emt 0:00:04]} 6. Bd2 {[%emt 0:00:46]} O-O {[%emt 0:00:26]} 7. Nf3 {[%emt 0:00:16]} Bd7 {[%emt 0:00:26]} 8. Qc2 {[%emt 0:00:09]} a5 {[%emt 0:00:18]} 9. a3 {[%emt 0:09:43]} Bd6 {[%emt 0:00:49]} 10. c5 {[%emt 0:18:33]} Be7 {[%emt 0:00:08]} 11. Bb5 {[%emt 0:00:45]} Nb4 {[%emt 0:04:02]} 12. axb4 {[%emt 0:04:32]} axb4 {[%emt 0:01:45]} 13. Rxa8 {[%emt 0:00:26]} Qxa8 {[%emt 0:00:10]} 14. Bd3 {[%emt 0:01:07]} bxc3 {[%emt 0:00:14]} 15. bxc3 {[%emt 0:00:49]} Qa1+ {[%emt 0:02:43]} 16. Qc1 {[%emt 0:00:51]} Qxc1+ {[%emt 0:08:27]} 17. Bxc1 {[%emt 0:00:05]} Ba4 {[%emt 0:08:57]} 18. Ke2 {[%emt 0:07:13]} b6 {[%emt 0:07:19]} 19. cxb6 {[%emt 0:00:16]} cxb6 {[%emt 0:00:09]} 20. Bd2 {[%emt 0:01:22]} Ne4 {[%emt 0:01:56]} 21. Rb1 {[%emt 0:11:09]} Rb8 {[%emt 0:00:58]} 22. Be1 {[%emt 0:08:54]} Nd6 {[%emt 0:00:52]} 23. Nd2 {[%emt 0:00:19]} b5 {[%emt 0:00:40]} 24. c4 {[%emt 0:33:55]} dxc4 {[%emt 0:00:27]} 25. Nxc4 {[%emt 0:00:00]} Nxc4 {[%emt 0:00:35]} 26. Bxc4 {[%emt 0:00:00]} b4 {[%emt 0:00:52]} 27. Kd3 {[%emt 0:00:00]} b3 {[%emt 0:03:57]} 28. Kc3 {[%emt 0:00:00]} Ba3 {[%emt 0:12:45]} 29. Bxb3 {[%emt 0:00:00]} Bb4+ {[%emt 0:00:33]} 30. Kc2 {[%emt 0:00:00]} Bxe1 {[%emt 0:02:23]} 31. Bxa4 {[%emt 0:00:00]} Rxb1 {[%emt 0:00:10]} 32. Kxb1 {[%emt 0:00:00]} Bxf2 {[%emt 0:00:10]} 33. d5 {[%emt 0:00:00]} exd5 {[%emt 0:00:34]} 34. Bb3 {[%emt 0:00:00]} Bg1 {[%emt 0:00:14]} 35. h3 {[%emt 0:00:00]} Bxe3 {[%emt 0:00:09]} 36. Bxd5 {[%emt 0:00:00]} h5 {[%emt 0:00:07]} 37. Kc2 {[%emt 0:00:00]} g6 {[%emt 0:00:06]} 38. Kd3 {[%emt 0:00:00]} Bb6 {[%emt 0:00:07]} 39. g4 {[%emt 0:00:00]} hxg4 {[%emt 0:00:03]} 40. hxg4 {[%emt 0:00:00]} Kg7 {[%emt 0:00:05]} 41. Ke4 {[%emt 0:20:32]} Bc7 {[%emt 0:30:08]} 42. g5 {[%emt 0:00:39]} Ba5 {[%emt 0:00:06]} 43. Kf4 {[%emt 0:00:04]} Bd2+ {[%emt 0:00:03]} 44. Kg4 {[%emt 0:00:04]} Bc1 {[%emt 0:00:06]} 45. Bc4 {[%emt 0:00:03]} Bd2 {[%emt 0:00:06]} 46. Bd5 {[%emt 0:00:06]} Bxg5 {[%emt 0:00:04]} 47. Kxg5 {[%emt 0:00:08]} f6+ {[%emt 0:00:05]} 48. Kg4 {[%emt 0:00:22]} Kh6 {[%emt 0:00:07]} 49. Be4 {[%emt 0:00:05]} f5+ {[%emt 0:00:06]} 50. Bxf5 {[%emt 0:00:02]} gxf5+ {[%emt 0:00:06]} 51. Kxf5 {[%emt 0:21:25]} 1/2-1/2

[Event "26th OIBM 2023"]
[Site "Gmund am Tegernsee"]
[Date "2023.10.31"]
[Round "4.6"]
[White "Gopal G.N."]
[Black "Kurmangaliyeva, Liya"]
[Result "1-0"]
[ECO "C78"]
[WhiteElo "2573"]
[BlackElo "2236"]
[Annotator "TA"]
[PlyCount "73"]
[EventDate "2023.10.04"]
[EventType "swiss"]
[EventCountry "GER"]
[SourceTitle "playchess.com"]
[Source "ChessBase"]
[SourceQuality "1"]
[TimeControl "40/5400+30:1800+30"]

{[%evp 16,73,44,10,6,0,0,0,0,0,0,0,49,50,56,24,35,18,43,53,44,56,64,39,68,75,101,95,103,90,83,97,109,119,144,89,99,90,103,0,104,61,131,77,142,51,58,43,67,23,64,23,70,74,76,67,590,575,586,566]} 1. e4 {[%emt 0:00:03]} e5 {[%emt 0:00:25]} 2. Nf3 {[%emt 0:00:04]} Nc6 {[%emt 0:00:12]} 3. Bb5 {[%emt 0:00:21][%cal Bf1b5,Bb5a4,Ba4b3][%mdl 32]} a6 {[%emt 0:00:17]} 4. Ba4 {[%emt 0:00:03]} Nf6 {[%emt 0:00:08]} 5. O-O {[%emt 0:00:53]} Bc5 {[%emt 0:00:22]} 6. c3 {[%emt 0:02:48]} b5 {[%emt 0:00:07]} 7. Bb3 {[%emt 0:00:44]} d6 {[%emt 0:00:16]} 8. d4 {[%emt 0:08:59]} Bb6 {[%emt 0:00:17]} 9. Be3 {[%emt 0:01:02] The modern move.} (9. a4 $5 {[%cal Ra4b5]}) 9... O-O {[%emt 0:00:38] C78: Ruy Lopez: Archangelsk and Möller Defences.} 10. Nbd2 {[%emt 0:00:12]} Re8 {[%emt 0:02:59]} 11. Re1 {[%emt 0:14:33]} exd4 {[%emt 0:34:55] The position is equal.} 12. cxd4 {[%emt 0:06:02][%cal Oe4e5]} Bg4 {[%emt 0:00:56][%cal Od8d7]} 13. h3 {[%emt 0:14:30]} Bxf3 {[%emt 0:07:08]} (13... Bh5 $1 $11) 14. Nxf3 $14 {[%emt 0:00:43] [#]} h6 $146 {[%emt 0:07:24] Repels Ng5} ({Predecessor:} 14... Rxe4 15. Bxf7+ Kh8 16. Rc1 Re7 17. Ng5 h6 18. Rxc6 hxg5 19. Bg6 Qd7 20. Qf3 g4 21. hxg4 Qxg4 22. Qxg4 Nxg4 {½-½ Markidis,K (2359)-Baldauf,M (2422) GRE-chT 44th 2016 (3.7)}) 15. Rc1 {[%emt 0:10:21]} (15. Bf4 $5 {[%cal Re4e5]}) 15... Na5 {[%emt 0:04:26]} 16. e5 {[%emt 0:03:03]} Nxb3 {[%emt 0:02:45]} (16... dxe5 {simplifies} 17. dxe5 Bxe3 18. Rxe3 Qxd1+ 19. Rxd1 Nxb3 20. Rxb3 Ne4) 17. Qxb3 {[%emt 0:00:46]} ({Of course not} 17. axb3 Nd5 $11) 17... Nd7 {[%emt 0:02:30][%cal Rd6e5]} 18. exd6 {[%emt 0:02:52]} cxd6 {[%emt 0:00:08]} 19. Rc6 {[%emt 0:01:00]} Nf6 {[%emt 0:01:39]} 20. Rec1 {[%emt 0:01:36]} Ra7 {[%emt 0:11:57]} 21. a4 {[%emt 0:04:32]} Rb7 {[%emt 0:12:12]} 22. axb5 {[%emt 0:00:10]} axb5 {[%emt 0:00:08]} 23. Qxb5 {[%emt 0:01:00]} Rb8 {[%emt 0:00:22][%cal Ob6d4]} 24. Qf5 {[%emt 0:06:18]} Ba5 {[%emt 0:00:50]} 25. R1c2 {[%emt 0:08:40]} ({White should play} 25. Nh4) 25... Bb4 $16 {[%emt 0:01:51]} 26. Ra6 {[%emt 0:04:39]} Re4 {[%emt 0:02:24] And now ...g6 would win.} 27. Rac6 {[%emt 0:02:42] Rc8 would be deadly. White has more active pieces.} Re8 $1 {[%emt 0:00:41]} ({Don't take} 27... g6 28. Qc8 $16) 28. R6c4 {[%emt 0:02:43]} Ba5 {[%emt 0:06:33]} ({Black should try} 28... Qa5 $14 29. Qxa5 Bxa5) 29. d5 {[%emt 0:02:12]} (29. Ra4 $142 Bc7 30. Ra7) 29... Bb6 {[%emt 0:00:00] [#]} (29... Qd7 $142 30. Qxd7 Nxd7) 30. Bxb6 {[%emt 0:01:25]} (30. Nd4 $1 $16 {[%cal Rd4c6] Hoping for Nc6.} Ra8 31. Qf3) 30... Qxb6 $14 {[%emt 0:00:00]} 31. Rc6 $36 {[%emt 0:00:21][%mdl 2048] White is more active.} Qb4 {[%emt 0:00:00]} 32. Qd3 {[%emt 0:00:34]} Ra8 {[%emt 0:00:00]} 33. g3 {[%emt 0:00:29]} g6 {[%emt 0:00:13]} (33... Ra5 $11 {is more appropriate.}) 34. Kg2 {[%emt 0:00:35]} Ra5 {[%emt 0:00:20] [#]} 35. R6c4 $1 {[%emt 0:00:32]} Qb7 {[%emt 0:00:32][%mdl 8192]} (35... Qb5 $14) 36. Qc3 $1 $18 {[%emt 0:00:15][%csl LRa5,LRf6]} Rxd5 {[%emt 0:02:21]} 37. Rc7 {[%emt 0:00:08] Weighted Error Value: White=0.24 (precise) /Black=0.31} 1-0